fUSD/lending_fUSD_20260427
["ID","MTS","AMOUNT","RATE_DAILY","PERIOD"]
[421237104,1777285750309,1630.85,0.00032876,120]
[421237105,1777285751106,500.0,0.00032876,120]
[421237106,1777285751990,500.0,0.00032876,120]
[421237107,1777285753812,500.0,0.00032876,120]
[421237108,1777285754322,500.0,0.00032876,120]
[421237109,1777285755451,734.93,0.00032876,120]
[421237110,1777285755499,1404.49,0.00032876,120]
[421237111,1777285756219,675.28,0.00032876,120]
[421237112,1777285756453,500.0,0.00032876,120]
[421237113,1777285759424,1028.53,0.00032876,120]
[421237114,1777285759577,500.0,0.00032876,120]
[421237115,1777285759732,500.0,0.00032876,120]
[421237116,1777285759862,894.08,0.00032876,120]
[421237117,1777285763429,500.0,0.00032876,120]
[421237118,1777285763488,12624.63,0.00032876,120]
[421237119,1777285763857,500.78794202,0.00032876,120]
[421237120,1777285764919,787.59,0.00032876,120]
[421237121,1777285765268,1065.78,0.00032876,120]
[421237122,1777285767767,500.0,0.00032876,120]
[421237123,1777285767839,500.0,0.00032876,120]
[421237124,1777285768426,500.0,0.00032876,120]
[421237125,1777285772150,500.0,0.00032876,120]
[421237126,1777285772360,667.96,0.00032876,120]
[421237127,1777285773475,559.0,0.00032877,120]
[421237128,1777285774633,1866.09,0.00032876,120]
[421237129,1777285776329,500.0,0.00032876,120]
[421237130,1777285776710,782.7,0.00032876,120]
[421237131,1777285777469,504.28,0.00032876,120]
[421237132,1777285779939,500.0,0.00032876,120]
[421237133,1777285780577,913.84,0.00032876,120]
[421237134,1777285781438,1981.47,0.00032876,120]
[421237135,1777285782173,500.0,0.00032876,120]
[421237136,1777285784537,500.0,0.00032876,120]
[421237137,1777285785874,500.0,0.00032876,120]
[421237138,1777285786957,500.0,0.00032876,120]
[421237139,1777285787018,993.81,0.00032876,120]
[421237140,1777285789052,500.0,0.00032876,120]
[421237141,1777285789302,500.0,0.00032876,120]
[421237142,1777285789354,825.89,0.00032876,120]
[421237143,1777285789600,500.0,0.00032876,120]
[421237144,1777285789683,698.98,0.00032876,120]
[421237145,1777285795121,1888.08,0.00032876,120]
[421237146,1777285795830,500.0,0.00032876,120]
[421237147,1777285796838,500.0,0.00032876,120]
[421237148,1777285796888,592.25,0.00032876,120]
[421237149,1777285796936,622.94,0.00032876,120]
[421237150,1777285798276,500.0,0.00032876,120]
[421237151,1777285798569,500.0,0.00032876,120]
[421237152,1777285800397,500.0,0.00032876,120]
[421237153,1777285804276,1000.0,0.00032876,120]
[421237154,1777285804396,500.0,0.00032876,120]
[421237155,1777285804606,500.0,0.00032876,120]
[421237156,1777285804829,632.28,0.00032876,120]
[421237157,1777285806395,500.0,0.00032876,120]
[421237158,1777285807632,955.44,0.00032876,120]
[421237159,1777285807948,529.07,0.00032876,120]
[421237160,1777285807999,521.82267142,0.00032876,120]
[421237161,1777285810293,788.69,0.00032876,120]
[421237162,1777285812066,500.0,0.00032876,120]
[421237163,1777285812633,500.0,0.00032876,120]
[421237164,1777285813939,1402.7,0.00032876,120]
[421237165,1777285814598,500.0,0.00032876,120]
[421237166,1777285814872,500.0,0.00032876,120]
[421237167,1777285815389,1338.52,0.00032876,120]
[421237168,1777285815439,500.0,0.00032876,120]
[421237169,1777285815775,819.03,0.00032876,120]
[421237170,1777285817939,500.0,0.00032876,120]
[421237171,1777285818101,775.7,0.00032876,120]
[421237172,1777285818566,528.76,0.00032876,120]
[421237173,1777285819785,939.29,0.00032876,120]
[421237174,1777285822778,502.66725313,0.00032876,120]
[421237175,1777285823156,884.19,0.00032876,120]
[421237176,1777285823778,500.0,0.00032876,120]
[421237177,1777285824497,587.1880354,0.00032876,120]
[421237178,1777285824564,587.47496223,0.00032876,120]
[421237179,1777285825341,500.0,0.00032876,120]
[421237180,1777285826275,502.35538336,0.00032876,120]
[421237181,1777285826512,500.0,0.00032876,120]
[421237182,1777285827797,908.14,0.00032876,120]
[421237183,1777285830750,790.91,0.00032876,120]
[421237184,1777285830798,500.0,0.00032876,120]
[421237185,1777285830845,500.0,0.00032876,120]
[421237187,1777285832344,503.03,0.00032876,120]
[421237188,1777285832365,-200.0,9e-05,3]
[421237189,1777285832375,-271.84604647,9.393e-05,2]
[421237190,1777285832386,-928.15395353,9.393e-05,2]
[421237191,1777285832396,-435.74889637,9.394e-05,2]
[421237192,1777285832407,-303.72702952,9.394e-05,2]
[421237193,1777285832419,-464.72178409,9.394e-05,2]
[421237194,1777285832431,-362.69899002,9.394e-05,2]
[421237195,1777285832441,-2210.1165,9.394e-05,2]
[421237196,1777285832450,-2500.0,9.394e-05,2]
[421237197,1777285832459,-3572.05287955,9.394e-05,2]
[421237198,1777285832584,-500.0,9.393e-05,2]
[421237199,1777285832594,-156.20506408,9.393e-05,2]
[421237200,1777285832604,-17.77366274,9.394e-05,2]
[421237205,1777285832730,-570.84748053,9.393e-05,2]
[421237207,1777285832739,-680.99080037,9.394e-05,2]
[421237209,1777285832750,-250.0,9.394e-05,2]
[421237211,1777285832763,-1248.86929294,9.394e-05,2]
[421237213,1777285832774,-3058.63601826,9.394e-05,2]
[421237216,1777285832785,-2287.51677326,9.394e-05,2]
[421237221,1777285832829,-354.43077671,9.393e-05,2]
[421237223,1777285832838,-51714.75177681,9.394e-05,2]
[421237226,1777285832850,-21628.40771933,9.394e-05,2]
[421237228,1777285832860,-4052.15087092,9.394e-05,2]
[421237230,1777285832872,-72277.21479032,9.394e-05,2]
[421237232,1777285832883,-393.653476,9.394e-05,2]
[421237234,1777285832894,-3623.97128579,9.394e-05,2]
[421237236,1777285832904,-546.3022,9.394e-05,2]
[421237267,1777285833283,500.0,0.00032876,120]
[421237268,1777285833671,500.0,0.00032876,120]
[421237269,1777285835216,500.0,0.00032876,120]
[421237270,1777285835407,903.54,0.00032876,120]
[421237271,1777285836011,530.03,0.00032876,120]
[421237272,1777285836058,1972.08,0.00032876,120]
[421237273,1777285836119,500.0,0.00032876,120]
[421237274,1777285837622,500.0,0.00032876,120]
[421237282,1777285838770,-23155.3758884,9.394e-05,2]
[421237283,1777285838782,-999.54,9.394e-05,2]
[421237284,1777285838810,-477.98434,9.394e-05,2]
[421237285,1777285838823,-5262.04689355,9.394e-05,2]
[421237286,1777285838861,-1221.80961954,9.394e-05,2]
[421237287,1777285838873,-639.55648851,9.394e-05,2]
[421237290,1777285839347,516.89048534,0.00032876,120]
[421237291,1777285839701,500.0,0.00032876,120]
[421237292,1777285839903,1617.05,0.00032876,120]
[421237293,1777285840059,586.55,0.00032876,120]
[421237294,1777285840138,526.05,0.00032876,120]
[421237296,1777285840821,-879.35112598,9.394e-05,2]
[421237297,1777285840882,-14005.17690587,9.394e-05,2]
[421237298,1777285840894,-3963.85509281,9.394e-05,2]
[421237299,1777285840911,-14029.80278619,9.394e-05,2]
[421237300,1777285840948,-762.577,9.394e-05,2]
[421237301,1777285842053,-13441.12926979,9.394e-05,2]
[421237302,1777285842191,500.94493317,0.00032876,120]
[421237303,1777285842234,-15497.97035719,9.394e-05,2]
[421237304,1777285842288,500.0,0.00032876,120]
[421237305,1777285843152,669.63,0.00032876,120]
[421237315,1777285843276,2864.39,0.00032876,120]
[421237316,1777285843963,500.0,0.00032876,120]
[421237317,1777285844576,500.0,0.00032876,120]
[421237318,1777285846017,1232.04,0.00032876,120]
[421237325,1777285847556,594.7789098,0.00032876,120]
[421237330,1777285847689,502.07212246,0.00032876,120]
[421237334,1777285847775,500.0,0.00032876,120]
[421237335,1777285847799,-451.67652715,9.393e-05,2]
[421237336,1777285847810,-48.32347285,9.393e-05,2]
[421237337,1777285847819,-270.04162041,9.393e-05,2]
[421237338,1777285848108,-229.95837959,9.393e-05,2]
[421237339,1777285848117,-500.0,9.393e-05,2]
[421237340,1777285848127,-500.0,9.393e-05,2]
[421237341,1777285848136,-500.0,9.393e-05,2]
[421237342,1777285848145,-500.0,9.393e-05,2]
[421237343,1777285848154,-500.0,9.393e-05,2]
[421237344,1777285848164,-500.00000001,9.393e-05,2]
[421237345,1777285848178,-500.0,9.393e-05,2]
[421237346,1777285848187,-500.0,9.393e-05,2]
[421237347,1777285848196,-500.0,9.393e-05,2]
[421237348,1777285848205,-500.0,9.393e-05,2]
[421237349,1777285848214,-500.0,9.393e-05,2]
[421237350,1777285848223,-500.0,9.393e-05,2]
[421237351,1777285848232,-500.0,9.393e-05,2]
[421237352,1777285848241,-500.0,9.393e-05,2]
[421237353,1777285848260,-500.0,9.393e-05,2]
[421237354,1777285848271,-500.0,9.393e-05,2]
[421237355,1777285848280,-3199.19432712,9.394e-05,2]
[421237358,1777285849409,500.0,0.00032876,120]
[421237359,1777285850318,500.0,0.00032876,120]
[421237360,1777285850672,581.92,0.00032876,120]
[421237361,1777285851040,971.15,0.00032876,120]
[421237362,1777285851781,1066.45,0.00032876,120]
[421237363,1777285853076,500.0,0.00032876,120]
[421237364,1777285853218,500.0,0.00032876,120]
[421237365,1777285853532,500.0,0.00032876,120]
[421237366,1777285853593,728.43,0.00032876,120]
[421237367,1777285853888,500.0,0.00032876,120]
[421237368,1777285854543,556.35,0.00032876,120]
[421237369,1777285854590,500.0,0.00032876,120]
[421237370,1777285854805,500.0,0.00032876,120]
[421237371,1777285855091,263.63892554,0.00032876,120]
[421237372,1777285855449,500.0,0.00032876,120]
[421237373,1777285855525,634.80793844,0.00032876,120]
[421237374,1777285857197,1464.39,0.00032876,120]
[421237375,1777285857847,500.0,0.00032876,120]
[421237376,1777285858717,711.08,0.00032876,120]
[421237377,1777285861136,1296.88,0.00032876,120]
[421237378,1777285861293,500.0,0.00032876,120]
[421237379,1777285861340,912.36,0.00032876,120]
[421237380,1777285861391,608.27,0.00032876,120]
[421237381,1777285862472,1276.39,0.00032876,120]
[421237382,1777285862821,1235.48,0.00032876,120]
[421237383,1777285863940,500.0,0.00032876,120]
[421237384,1777285864401,642.92,0.00032876,120]
[421237385,1777285864698,500.0,0.00032876,120]
[421237386,1777285864977,500.0,0.00032876,120]
[421237387,1777285865342,500.0,0.00032876,120]
[421237388,1777285865732,151.0,0.00032876,120]
[421237389,1777285866336,2115.54,0.00032876,120]
[421237390,1777285867548,500.0,0.00032876,120]
[421237391,1777285868976,500.0,0.00032876,120]
[421237392,1777285871039,522.08,0.00032876,120]
[421237393,1777285872097,500.0,0.00032876,120]
[421237394,1777285872252,500.0,0.00032876,120]
[421237395,1777285872341,2917.68,0.00032876,120]
[421237396,1777285872395,500.0,0.00032876,120]
[421237397,1777285872534,500.0,0.00032876,120]
[421237398,1777285872875,1178.53,0.00032876,120]
[421237399,1777285873831,500.0,0.00032876,120]
[421237400,1777285874030,1403.19,0.00032876,120]
[421237401,1777285874860,500.0,0.00032876,120]
[421237402,1777285875825,500.0,0.00032876,120]
[421237403,1777285877120,500.0,0.00032876,120]
[421237404,1777285877716,500.0,0.00032876,120]
[421237405,1777285878341,2095.33,0.00032876,120]
[421237406,1777285878731,552.42,0.00032876,120]
[421237407,1777285879614,501.64296874,0.00032876,120]
[421237408,1777285879719,806.88,0.00032876,120]
[421237409,1777285879955,500.0,0.00032876,120]
[421237410,1777285880003,1311.61,0.00032876,120]
[421237411,1777285880774,502.00246033,0.00032876,120]
[421237425,1777285881715,509.2,0.00032876,120]
[421237426,1777285882735,500.0,0.00032876,120]
[421237427,1777285883228,709.47,0.00032876,120]
[421237428,1777285883490,500.0,0.00032876,120]
[421237429,1777285883892,548.09,0.00032876,120]
[421237430,1777285884962,500.0,0.00032876,120]
[421237431,1777285885013,3456.66,0.00032876,120]
[421237432,1777285885287,500.0,0.00032876,120]
[421237433,1777285886790,647.2,0.00032876,120]
[421237434,1777285887165,2025.87,0.00032876,120]
[421237435,1777285889450,884.96,0.00032876,120]
[421237436,1777285890106,500.0,0.00032876,120]
[421237437,1777285890973,917.31,0.00032876,120]
[421237438,1777285891536,1239.98,0.00032876,120]
[421237439,1777285892455,500.0,0.00032876,120]
[421237440,1777285893364,1039.58,0.00032876,120]
[421237441,1777285893836,500.0,0.00032876,120]
[421237442,1777285895464,2614.44,0.00032876,120]
[421237443,1777285896592,500.0,0.00032876,120]
[421237444,1777285898191,500.0,0.00032876,120]
[421237445,1777285898445,500.0,0.00032876,120]
[421237446,1777285898583,908.94,0.00032876,120]
[421237447,1777285898632,502.67517896,0.00032876,120]
[421237448,1777285898740,1217.36,0.00032876,120]
[421237449,1777285898796,2066.71,0.00032876,120]
[421237450,1777285899001,955.85,0.00032876,120]
[421237451,1777285899067,500.0,0.00032876,120]
[421237452,1777285900253,500.0,0.00032876,120]
[421237453,1777285900755,847.57,0.00032876,120]
[421237454,1777285901053,742.81,0.00032876,120]
[421237455,1777285902182,1471.59,0.00032876,120]
[421237456,1777285904169,2350.58,0.00032876,120]
[421237457,1777285904438,500.0,0.00032876,120]
[421237458,1777285904483,702.89,0.00032876,120]
[421237459,1777285904710,500.0,0.00032876,120]
[421237460,1777285906012,500.0,0.00032876,120]
[421237461,1777285906104,1162.85,0.00032876,120]
[421237462,1777285907334,500.0,0.00032876,120]
[421237463,1777285908053,500.0,0.00032876,120]
[421237464,1777285908226,1122.03,0.00032876,120]
[421237465,1777285908273,506.35394921,0.00032876,120]
[421237466,1777285908870,1055.8,0.00032876,120]
[421237467,1777285909558,500.0,0.00032876,120]
[421237468,1777285909870,500.0,0.00032876,120]
[421237469,1777285910196,705.86,0.00032876,120]
[421237470,1777285911186,790.4,0.00032876,120]
[421237471,1777285911535,500.0,0.00032876,120]
[421237472,1777285912040,500.0,0.00032876,120]
[421237473,1777285912320,500.0,0.00032876,120]
[421237474,1777285912665,500.0,0.00032876,120]
[421237475,1777285913648,500.0,0.00032876,120]
[421237476,1777285915144,1449.41,0.00032876,120]
[421237477,1777285915504,2255.12,0.00032876,120]
[421237478,1777285915879,641.99,0.00032876,120]
[421237479,1777285915995,500.0,0.00032876,120]
[421237480,1777285916091,942.76,0.00032876,120]
[421237481,1777285916420,766.12,0.00032876,120]
[421237482,1777285917070,500.0,0.00032876,120]
[421237483,1777285917964,2246.23,0.00032876,120]
[421237484,1777285918387,500.0,0.00032876,120]
[421237485,1777285919209,500.0,0.00032876,120]
[421237486,1777285922183,1771.69,0.00032876,120]
[421237487,1777285922618,500.0,0.00032876,120]
[421237488,1777285922699,1194.6,0.00032876,120]
[421237489,1777285923332,1252.79,0.00032876,120]
[421237490,1777285923394,631.35,0.00032876,120]
[421237491,1777285923449,1193.92,0.00032876,120]
[421237492,1777285923496,500.0,0.00032876,120]
[421237493,1777285924351,500.0,0.00032876,120]
[421237494,1777285924639,1338.79,0.00032876,120]
[421237495,1777285927186,263.18867513,0.00032876,120]
[421237496,1777285927469,500.0,0.00032876,120]
[421237497,1777285927970,500.0,0.00032876,120]
[421237498,1777285928353,500.0,0.00032876,120]
[421237499,1777285928519,500.0,0.00032876,120]
[421237500,1777285929252,500.0,0.00032876,120]
[421237501,1777285930321,500.0,0.00032876,120]
[421237502,1777285930368,298.4612738,0.00032876,120]
[421237503,1777285930427,500.0,0.00032876,120]
[421237504,1777285930878,500.0,0.00032876,120]
[421237505,1777285931366,2995.09,0.00032876,120]
[421237506,1777285932507,528.83,0.00032876,120]
[421237507,1777285932765,500.0,0.00032876,120]
[421237508,1777285933480,500.0,0.00032876,120]
[421237509,1777285934927,1822.08,0.00032876,120]
[421237510,1777285935814,1730.86,0.00032876,120]
[421237511,1777285935864,500.0,0.00032876,120]
[421237512,1777285936080,639.45,0.00032876,120]
[421237513,1777285936449,510.22,0.00032876,120]
[421237514,1777285937668,500.0,0.00032876,120]
[421237515,1777285937893,720.58,0.00032876,120]
[421237516,1777285938200,500.0,0.00032876,120]
[421237517,1777285938527,600.34,0.00032876,120]
[421237518,1777285938927,500.0,0.00032876,120]
[421237519,1777285939189,500.0,0.00032876,120]
[421237520,1777285942152,500.0,0.00032876,120]
[421237521,1777285942714,500.0,0.00032876,120]
[421237522,1777285943071,810.33,0.00032876,120]
[421237523,1777285943319,500.0,0.00032876,120]
[421237524,1777285944035,500.0,0.00032876,120]
[421237525,1777285944171,797.53,0.00032876,120]
[421237526,1777285944845,500.0,0.00032876,120]
[421237527,1777285945883,500.0,0.00032876,120]
[421237528,1777285945958,1469.93,0.00032876,120]
[421237529,1777285946513,500.0,0.00032876,120]
[421237530,1777285947193,500.0,0.00032876,120]
[421237531,1777285947598,500.0,0.00032876,120]
[421237532,1777285947975,2351.12,0.00032876,120]
[421237533,1777285948657,500.0,0.00032876,120]
[421237534,1777285948986,500.0,0.00032876,120]
[421237535,1777285949378,1901.09,0.00032876,120]
[421237536,1777285949722,500.0,0.00032876,120]
[421237537,1777285949979,929.57,0.00032876,120]
[421237538,1777285950312,500.0,0.00032876,120]
[421237539,1777285951088,500.0,0.00032876,120]
[421237540,1777285951466,500.0,0.00032876,120]
[421237541,1777285952816,500.0,0.00032876,120]
[421237542,1777285954091,500.0,0.0003287,120]
[421237543,1777285954378,500.0,0.00032876,120]
[421237544,1777285954675,838.2,0.00032876,120]
[421237545,1777285955428,927.87,0.00032876,120]
[421237546,1777285956876,500.0,0.00032876,120]
[421237547,1777285957153,500.0,0.00032876,120]
[421237548,1777285957201,500.0,0.00032876,120]
[421237549,1777285957954,740.68,0.00032876,120]
[421237550,1777285958847,695.55,0.00032876,120]
[421237551,1777285959010,2187.87,0.00032876,120]
[421237552,1777285959066,910.74,0.00032876,120]
[421237553,1777285960490,500.0,0.00032876,120]
[421237554,1777285960541,1215.04,0.00032876,120]
[421237555,1777285960611,500.0,0.00032876,120]
[421237556,1777285960849,500.0,0.00032876,120]
[421237557,1777285960989,780.76,0.00032876,120]
[421237558,1777285961153,500.0,0.00032876,120]
[421237559,1777285961524,951.38,0.00032876,120]
[421237560,1777285962175,1119.51,0.00032876,120]
[421237561,1777285964238,5578.32,0.00032876,120]
[421237562,1777285964391,500.0,0.00032876,120]
[421237563,1777285964439,1966.29,0.00032876,120]
[421237564,1777285965163,497.89554429,0.00032876,120]
[421237565,1777285967741,500.0,0.00032876,120]
[421237566,1777285968269,500.0,0.00032876,120]
[421237567,1777285968905,1193.68,0.00032876,120]
[421237568,1777285969327,829.81,0.00032876,120]
[421237569,1777285969443,700.96,0.00032876,120]
[421237570,1777285970152,500.0,0.00032876,120]
[421237571,1777285970413,606.89,0.00032876,120]
[421237572,1777285970463,500.0,0.00032876,120]
[421237573,1777285970519,279.21879446,0.00032876,120]
[421237574,1777285970997,500.0,0.00032876,120]
[421237575,1777285972253,797.18,0.00032876,120]
[421237576,1777285973842,6226.69,0.00032876,120]
[421237577,1777285974581,500.0,0.00032876,120]
[421237578,1777285975204,500.0,0.00032876,120]
[421237579,1777285975279,500.0,0.00032876,120]
[421237580,1777285975357,500.0,0.00032876,120]
[421237581,1777285976250,500.0,0.00032876,120]
[421237582,1777285978391,500.0,0.00032876,120]
[421237583,1777285978480,12098.6,0.00032876,120]
[421237584,1777285978538,597.0681044,0.00032876,120]
[421237585,1777285979336,500.0,0.00032876,120]
[421237586,1777285979587,809.52,0.00032876,120]
[421237587,1777285979684,698.1,0.00032876,120]
[421237588,1777285979866,517.03,0.00032876,120]
[421237589,1777285980430,1212.9,0.00032876,120]
[421237590,1777285981112,500.0,0.00032876,120]
[421237591,1777285981237,1021.37,0.00032876,120]
[421237592,1777285981884,998.96,0.00032876,120]
[421237593,1777285983388,1711.26,0.00032876,120]
[421237594,1777285984096,500.0,0.00032876,120]
[421237595,1777285985364,1180.67,0.00032876,120]
[421237596,1777285985515,873.81,0.00032876,120]
[421237597,1777285986186,534.21,0.00032876,120]
[421237598,1777285987424,500.0,0.00032876,120]
[421237599,1777285987481,500.0,0.00032876,120]
[421237601,1777285990693,756.91,0.00032876,120]
[421237602,1777285990865,500.0,0.00032876,120]
[421237603,1777285992020,955.03,0.00032876,120]
[421237604,1777285992198,704.31,0.00032876,120]
[421237605,1777285992480,500.0,0.00032876,120]
[421237606,1777285992716,500.0,0.00032876,120]
[421237607,1777285993182,500.0,0.00032876,120]
[421237608,1777285993237,883.91,0.00032876,120]
[421237609,1777285993930,500.0,0.00032876,120]
[421237610,1777285994308,500.0,0.00032876,120]
[421237611,1777285996046,500.0,0.00032876,120]
[421237612,1777285997915,893.08,0.00032876,120]
[421237613,1777285998376,538.49096574,0.00032876,120]
[421237614,1777285999209,500.0,0.00032876,120]
[421237615,1777285999260,634.33,0.00032876,120]
[421237616,1777286000058,1860.69,0.00032876,120]
[421237617,1777286000362,500.0,0.00032876,120]
[421237618,1777286001622,500.0,0.00032876,120]
[421237619,1777286001983,500.0,0.00032876,120]
[421237620,1777286002364,500.0,0.00032876,120]
[421237621,1777286002748,581.1,0.00032876,120]
[421237622,1777286002805,952.4,0.00032876,120]
[421237623,1777286002914,500.0,0.00032876,120]
[421237624,1777286003574,500.0,0.00032876,120]
[421237625,1777286003624,500.0,0.00032876,120]
[421237626,1777286003728,754.77,0.00032876,120]
[421237627,1777286005062,500.0,0.00032876,120]
[421237628,1777286005573,638.41,0.00032876,120]
[421237629,1777286007443,796.18,0.00032876,120]
[421237630,1777286007902,500.0,0.00032876,120]
[421237631,1777286008301,500.0,0.00032876,120]
[421237632,1777286008445,500.0,0.00032876,120]
[421237633,1777286008797,647.14,0.00032876,120]
[421237634,1777286009698,500.0,0.00032876,120]
[421237635,1777286009759,1809.41,0.00032876,120]
[421237636,1777286012173,500.0,0.00032876,120]
[421237637,1777286012776,500.0,0.00032876,120]
[421237638,1777286014370,1764.29,0.00032876,120]
[421237639,1777286014419,676.24,0.00032876,120]
[421237640,1777286016685,914.96,0.00032876,120]
[421237641,1777286017346,500.0,0.00032876,120]
[421237642,1777286017548,612.17,0.00032876,120]
[421237643,1777286018412,646.45440582,0.00032876,120]
[421237644,1777286018460,500.0,0.00032876,120]
[421237645,1777286018564,500.0,0.00032876,120]
[421237646,1777286019570,500.0,0.00032876,120]
[421237647,1777286020786,2037.28,0.00032876,120]
[421237648,1777286021019,500.0,0.00032876,120]
[421237649,1777286021847,500.0,0.00032876,120]
[421237650,1777286022045,500.0,0.00032876,120]
[421237651,1777286023278,681.93,0.00032876,120]
[421237652,1777286023687,500.0,0.00032876,120]
[421237653,1777286023909,757.42,0.00032876,120]
[421237654,1777286024279,590.63,0.00032876,120]
[421237655,1777286024898,500.0,0.00032876,120]
[421237656,1777286025256,500.0,0.00032876,120]
[421237657,1777286025305,1000.0,0.00032876,120]
[421237658,1777286026571,1788.34,0.00032876,120]
[421237659,1777286026740,500.0,0.00032876,120]
[421237660,1777286026800,500.0,0.00032876,120]
[421237661,1777286027282,500.0,0.00032876,120]
[421237662,1777286028436,500.0,0.00032876,120]
[421237663,1777286029493,976.87,0.00032876,120]
[421237664,1777286031003,1030.44,0.00032876,120]
[421237665,1777286031297,500.0,0.00032876,120]
[421237666,1777286031505,922.62,0.00032876,120]
[421237667,1777286032488,500.0,0.00032876,120]
[421237668,1777286033914,500.0,0.00032876,120]
[421237669,1777286034127,353.78118236,0.000324,120]
[421237670,1777286034885,1188.79,0.00032876,120]
[421237671,1777286035602,633.56,0.00032876,120]
[421237672,1777286035973,2074.61,0.00032876,120]
[421237673,1777286037481,718.74,0.00032876,120]
[421237674,1777286037528,500.0,0.00032876,120]
[421237675,1777286038443,1058.28,0.00032876,120]
[421237676,1777286040089,607.05,0.00032876,120]
[421237677,1777286042393,500.0,0.00032876,120]
[421237678,1777286042443,500.0,0.00032876,120]
[421237679,1777286042497,500.0,0.00032876,120]
[421237680,1777286042864,8579.65,0.00032876,120]
[421237681,1777286045086,1188.06,0.00032876,120]
[421237682,1777286045472,500.0,0.00032876,120]
[421237683,1777286046064,500.0,0.00032876,120]
[421237684,1777286047608,500.0,0.00032876,120]
[421237685,1777286047673,5131.73,0.00032876,120]
[421237686,1777286048915,500.0,0.00032876,120]
[421237687,1777286051308,1132.48,0.00032876,120]
[421237688,1777286052448,500.0,0.00032876,120]
[421237689,1777286052506,500.0,0.00032876,120]
[421237690,1777286052649,500.0,0.00032876,120]
[421237691,1777286053424,500.0,0.00032876,120]
[421237692,1777286053484,785.07,0.00032876,120]
[421237693,1777286053601,999.35,0.00032876,120]
[421237694,1777286055099,730.44,0.00032876,120]
[421237695,1777286056106,2745.04,0.00032876,120]
[421237696,1777286058243,500.0,0.00032876,120]
[421237697,1777286059856,588.19,0.00032876,120]
[421237698,1777286060259,500.0,0.00032876,120]
[421237699,1777286060487,500.0,0.00032876,120]
[421237700,1777286061899,500.0,0.00032876,120]
[421237701,1777286061983,500.0,0.00032876,120]
[421237702,1777286062772,500.0,0.00032876,120]
[421237703,1777286062996,526.22,0.00032876,120]
[421237704,1777286063062,841.98,0.00032876,120]